[Event "CZE-ch Open 2018"]
[Site "Ostrava"]
[Date "2018.05.02"]
[Round "5"]
[White "Tuma, Jiri"]
[Black "Vokac, Marek"]
[Result "1/2-1/2"]
[ECO "B06"]
[WhiteElo "2296"]
[BlackElo "2390"]
[Annotator "ChessBase"]
[PlyCount "205"]
[EventDate "2018.??.??"]
[EventCountry "CZE"]
[SourceTitle "playchess.com"]
[Source "ChessBase"]
[SourceQuality "1"]
[TimeControl "40/5400+30:900+30"]

1. e4 {[%emt 0:00:00]} g6 {[%emt 0:00:42]} 2. d4 {[%emt 0:00:06]} Bg7 {[%emt 0:00:12]} 3. Nc3 {[%emt 0:00:55]} d6 {[%emt 0:00:03]} 4. f4 {[%emt 0:00:49]} a6 {[%emt 0:01:58]} 5. Nf3 {[%emt 0:01:03]} Bg4 {[%emt 0:04:40]} 6. Bc4 {[%emt 0:09:10]} e6 {[%emt 0:08:03]} 7. Be3 {[%emt 0:08:07]} Nc6 {[%emt 0:06:03]} 8. O-O {[%emt 0:12:51]} b5 {[%emt 0:19:14]} 9. Bb3 {[%emt 0:19:44]} Na5 {[%emt 0:03:35]} 10. h3 {[%emt 0:06:10]} Nxb3 {[%emt 0:02:32]} 11. axb3 {[%emt 0:00:46]} Bxf3 {[%emt 0:00:09]} 12. Qxf3 {[%emt 0:00:53]} Ne7 {[%emt 0:05:19]} 13. f5 {[%emt 0:01:15]} gxf5 {[%emt 0:00:08]} 14. exf5 {[%emt 0:01:45]} exf5 {[%emt 0:02:17]} 15. Nxb5 {[%emt 0:10:50]} O-O {[%emt 0:08:11]} 16. Nc3 {[%emt 0:00:57]} Qd7 {[%emt 0:00:13]} 17. Kh1 {[%emt 0:02:15]} Rae8 {[%emt 0:03:44]} 18. Bg1 {[%emt 0:06:41]} Nc6 {[%emt 0:07:46]} 19. Ne2 {[%emt 0:00:32]} f4 {[%emt 0:04:51]} 20. c3 {[%emt 0:01:03]} Qf5 {[%emt 0:03:19]} 21. Nxf4 {[%emt 0:01:50]} Ne7 {[%emt 0:02:18]} 22. b4 {[%emt 0:04:02]} Ng6 {[%emt 0:02:36]} 23. Bh2 {[%emt 0:04:23]} Qc2 {[%emt 0:02:20]} 24. Rf2 {[%emt 0:01:14]} Qe4 {[%emt 0:02:44]} 25. Qxe4 {[%emt 0:01:18]} Rxe4 {[%emt 0:00:02]} 26. Nh5 {[%emt 0:01:51]} Rfe8 {[%emt 0:01:35]} 27. Bg3 {[%emt 0:00:49]} Re1+ {[%emt 0:03:05]} 28. Rxe1 {[%emt 0:00:10]} Rxe1+ {[%emt 0:00:05]} 29. Kh2 {[%emt 0:00:05]} Re3 {[%emt 0:00:44]} 30. Bf4 {[%emt 0:00:55]} Re1 {[%emt 0:03:10]} 31. Bd2 {[%emt 0:00:05]} Rb1 {[%emt 0:00:27]} 32. Bg5 {[%emt 0:00:13]} f5 {[%emt 0:02:26]} 33. Nxg7 {[%emt 0:02:37]} Kxg7 {[%emt 0:00:02]} 34. Rxf5 {[%emt 0:00:41]} Rxb2 {[%emt 0:00:07]} 35. d5 {[%emt 0:00:48]} Ne5 {[%emt 0:01:35]} 36. Bd8 {[%emt 0:00:25]} Rd2 {[%emt 0:00:52]} 37. Bxc7 {[%emt 0:00:14]} Kg6 {[%emt 0:00:31]} 38. Rf8 {[%emt 0:00:46]} Rxd5 {[%emt 0:00:03]} 39. Rd8 {[%emt 0:00:19]} Nc4 {[%emt 0:00:12]} 40. Ra8 {[%emt 0:00:22]} Kf5 {[%emt 0:16:41]} 41. Rxa6 {[%emt 0:00:00]} Ke4 {[%emt 0:00:00]} 42. b5 {[%emt 0:00:00]} Rxb5 {[%emt 0:00:00]} 43. Bxd6 {[%emt 0:00:00]} Rb2 {[%emt 0:00:00]} 44. Bc5 {[%emt 0:00:00]} Nd2 {[%emt 0:00:00]} 45. Rf6 {[%emt 0:00:00]} Rb1 {[%emt 0:00:00]} 46. h4 {[%emt 0:02:00]} h5 {[%emt 0:00:00]} 47. Bd4 {[%emt 0:03:15]} Rd1 {[%emt 0:00:00]} 48. Kg3 {[%emt 0:08:22]} Nf1+ {[%emt 0:03:44]} 49. Kf2 {[%emt 0:00:01]} Nh2 {[%emt 0:00:12]} 50. Re6+ {[%emt 0:00:32]} Kf4 {[%emt 0:01:19]} 51. g3+ {[%emt 0:02:12]} Kg4 {[%emt 0:00:20]} 52. Rg6+ {[%emt 0:00:47]} Kh3 {[%emt 0:00:05]} 53. Rg5 {[%emt 0:00:25]} Rd2+ {[%emt 0:00:46]} 54. Ke3 {[%emt 0:01:04]} Nf1+ {[%emt 0:00:35]} 55. Kf4 {[%emt 0:00:50]} Rd3 {[%emt 0:00:17]} 56. Rxh5 {[%emt 0:00:48]} Nxg3 {[%emt 0:00:06]} 57. Rh8 {[%emt 0:00:43]} Ne2+ {[%emt 0:01:12]} 58. Ke4 {[%emt 0:02:27]} Rg3 {[%emt 0:00:02]} 59. Rc8 {[%emt 0:00:49]} Rg4+ {[%emt 0:00:36]} 60. Kd5 {[%emt 0:00:39]} Kxh4 {[%emt 0:00:56]} 61. Be5 {[%emt 0:00:41]} Nxc3+ {[%emt 0:00:36]} 62. Rxc3 {[%emt 0:00:19]} Kg5 {[%emt 0:00:11]} 63. Rf3 {[%emt 0:00:13]} Ra4 {[%emt 0:00:45]} 64. Ke6 {[%emt 0:00:14]} Rg4 {[%emt 0:00:10]} 65. Rf8 {[%emt 0:00:16]} Kg6 {[%emt 0:00:11]} 66. Rh8 {[%emt 0:01:20]} Kg5 {[%emt 0:00:09]} 67. Rg8+ {[%emt 0:00:49]} Kh5 {[%emt 0:00:02]} 68. Rh8+ {[%emt 0:00:29]} Kg6 {[%emt 0:00:02]} 69. Ra8 {[%emt 0:00:39]} Kg5 {[%emt 0:00:18]} 70. Ra7 {[%emt 0:00:21]} Kg6 {[%emt 0:00:06]} 71. Rf7 {[%emt 0:00:32]} Kg5 {[%emt 0:00:35]} 72. Rh7 {[%emt 0:00:22]} Kg6 {[%emt 0:00:04]} 73. Rh8 {[%emt 0:00:17]} Kg5 {[%emt 0:00:08]} 74. Bf6+ {[%emt 0:00:29]} Kg6 {[%emt 0:00:05]} 75. Ke5 {[%emt 0:00:52]} Ra4 {[%emt 0:01:36]} 76. Rg8+ {[%emt 0:00:08]} Kf7 {[%emt 0:01:36]} 77. Rg7+ {[%emt 0:00:03]} Kf8 {[%emt 0:00:13]} 78. Rb7 {[%emt 0:00:17]} Ra5+ {[%emt 0:01:58]} 79. Ke6 {[%emt 0:00:11]} Ra6+ {[%emt 0:00:10]} 80. Kf5 {[%emt 0:00:08]} Rc6 {[%emt 0:01:08]} 81. Kg6 {[%emt 0:00:27]} Ke8 {[%emt 0:00:01]} 82. Ra7 {[%emt 0:01:06]} Rd6 {[%emt 0:00:12]} 83. Kf5 {[%emt 0:01:14]} Rd7 {[%emt 0:00:14]} 84. Ra8+ {[%emt 0:00:21]} Kf7 {[%emt 0:00:02]} 85. Rh8 {[%emt 0:00:20]} Rd5+ {[%emt 0:00:13]} 86. Be5 {[%emt 0:00:05]} Rd7 {[%emt 0:00:12]} 87. Rh6 {[%emt 0:00:37]} Ke8 {[%emt 0:00:26]} 88. Bd6 {[%emt 0:00:40]} Rf7+ {[%emt 0:01:08]} 89. Ke6 {[%emt 0:00:25]} Re7+ {[%emt 0:00:02]} 90. Kd5 {[%emt 0:00:16]} Rg7 {[%emt 0:00:30]} 91. Be5 {[%emt 0:00:38]} Rd7+ {[%emt 0:00:30]} 92. Bd6 {[%emt 0:00:57]} Rg7 {[%emt 0:00:02]} 93. Rf6 {[%emt 0:00:15]} Kd7 {[%emt 0:00:29]} 94. Rf8 {[%emt 0:00:32]} Rh7 {[%emt 0:01:18]} 95. Rg8 {[%emt 0:00:27]} Rf7 {[%emt 0:00:15]} 96. Ra8 {[%emt 0:00:11]} Rf5+ {[%emt 0:00:26]} 97. Be5 {[%emt 0:00:06]} Rf7 {[%emt 0:00:03]} 98. Ra6 {[%emt 0:01:19]} Ke8 {[%emt 0:01:21]} 99. Ke6 {[%emt 0:00:51]} Re7+ {[%emt 0:00:12]} 100. Kf6 {[%emt 0:00:10]} Rf7+ {[%emt 0:00:22]} 101. Kg6 {[%emt 0:00:14]} Rb7 {[%emt 0:00:11]} 102. Kf5 {[%emt 0:01:01]} Kd7 {[%emt 0:00:36]} 103. Ke4 {[%emt 0:00:42]} 1/2-1/2

[Event "CZE-ch Open 2018"]
[Site "Ostrava"]
[Date "2018.05.02"]
[Round "5"]
[White "Toman, Jaroslav"]
[Black "Sramek, Vojtech"]
[Result "1-0"]
[ECO "B24"]
[WhiteElo "2233"]
[BlackElo "2145"]
[Annotator "NA RC"]
[PlyCount "83"]
[EventDate "2018.??.??"]
[EventCountry "CZE"]
[SourceTitle "playchess.com"]
[Source "ChessBase"]
[SourceQuality "1"]
[TimeControl "40/5400+30:900+30"]

1. e4 {[%emt 0:00:00]} c5 {[%emt 0:00:43]} 2. Nc3 {[%emt 0:00:00]} Nc6 {[%emt 0:00:08]} 3. g3 {[%emt 0:17:50]} g6 {[%emt 0:00:30]} 4. Bg2 {[%emt 0:00:30]} Bg7 {[%emt 0:00:30]} 5. f4 {[%emt 0:00:30]} d6 {[%emt 0:00:30]} 6. Nf3 {[%emt 0:00:30]} e6 {[%emt 0:00:30]} 7. d3 {[%emt 0:00:30]} Nge7 {[%emt 0:00:30]} 8. O-O {[%emt 0:00:30]} O-O 9. Be3 Nd4 {[%emt 0:08:21]} 10. Rb1 {[%emt 0:01:30]} Rb8 {[%emt 0:09:30]} 11. Ne2 {[%emt 0:01:02]} Nec6 {[%emt 0:04:16]} 12. Nh4 {[%emt 0:09:19] B25: Closed Sicilian: 3 g3, lines without early Be3} (12. c3 Nxf3+ 13. Bxf3 f5 14. exf5 gxf5 15. d4 cxd4 16. Nxd4 d5 17. Nxc6 bxc6 18. Bxa7 Ra8 19. Bc5 Rxa2 20. Bxf8 {1-0 (31) Stukopin,A (2471)-Usmanov,V (2289) Kirishi 2011}) 12... Bd7 $146 {[%emt 0:14:37]} ({Predecessor:} 12... Nxe2+ 13. Qxe2 f5 14. c3 Qc7 15. g4 Ne7 16. Rbe1 Bd7 17. Bd2 Rbe8 18. Qf3 b5 19. Qg3 Bc6 {1-0 (30) Sorbe,S (2258)-Roger,R (2204) France 2004}) 13. c3 {[%emt 0:01:39]} Nxe2+ {[%emt 0:00:36]} 14. Qxe2 {[%emt 0:00:05]} f5 {[%emt 0:00:14]} 15. e5 {[%emt 0:07:52]} Qc7 {[%emt 0:11:50]} 16. exd6 {[%emt 0:08:44]} Qxd6 {[%emt 0:00:17]} 17. Qf2 {[%emt 0:06:20]} b6 {[%emt 0:02:14]} 18. Nf3 {[%emt 0:00:18]} Rbd8 {[%emt 0:11:27]} 19. Rbd1 {[%emt 0:00:27]} e5 {[%emt 0:08:50]} 20. fxe5 {[%emt 0:02:57]} Nxe5 {[%emt 0:00:20]} 21. Nxe5 {[%emt 0:00:19]} Bxe5 {[%emt 0:01:02]} 22. d4 {[%emt 0:05:08]} Bb5 {[%emt 0:03:04]} 23. Rd2 {[%emt 0:11:39]} cxd4 {[%emt 0:05:35]} 24. cxd4 {[%emt 0:00:04]} Bf6 {[%emt 0:02:57]} 25. Rfd1 {[%emt 0:02:04]} Qb4 {[%emt 0:03:17]} 26. d5 {[%emt 0:04:14]} Be5 {[%emt 0:02:08]} 27. Bd4 {[%emt 0:03:26]} Bxd4 {[%emt 0:00:47]} 28. Rxd4 {[%emt 0:00:09]} Qd6 {[%emt 0:00:22]} 29. a4 {[%emt 0:04:34]} Ba6 {[%emt 0:00:29]} 30. Qd2 {[%emt 0:00:05]} Rfe8 {[%emt 0:01:18]} 31. Re1 {[%emt 0:02:10]} Rc8 {[%emt 0:02:15]} 32. Rxe8+ {[%emt 0:00:42]} Rxe8 {[%emt 0:00:05]} 33. Bf3 {[%emt 0:00:24]} Bb7 {[%emt 0:01:20]} 34. Kg2 {[%emt 0:00:27]} Kg7 {[%emt 0:01:20]} 35. h4 {[%emt 0:01:20]} h5 {[%emt 0:00:56]} 36. Rc4 {[%emt 0:01:39]} Rd8 {[%emt 0:00:51]} 37. Qc3+ {[%emt 0:03:16]} Kg8 {[%emt 0:01:23]} 38. Rc7 {[%emt 0:00:56]} Rd7 {[%emt 0:01:25]} 39. Rxb7 {[%emt 0:00:46]} Rxb7 {[%emt 0:00:14]} 40. Qc8+ {[%emt 0:00:06]} Qf8 $18 {[%emt 0:15:13]} 41. Qxb7 {[%emt 0:15:07]} Qb4 {[%emt 0:00:34]} 42. Qc8+ {[%emt 0:03:44]} 1-0

[Event "CZE-ch Open 2018"]
[Site "Ostrava"]
[Date "2018.05.02"]
[Round "5"]
[White "Vystrcil, Martin"]
[Black "Jelinek, Michal"]
[Result "0-1"]
[ECO "C03"]
[WhiteElo "2146"]
[BlackElo "2134"]
[Annotator "NA RC"]
[PlyCount "66"]
[EventDate "2018.??.??"]
[EventCountry "CZE"]
[SourceTitle "playchess.com"]
[Source "ChessBase"]
[SourceQuality "1"]
[TimeControl "40/5400+30:900+30"]

1. e4 {[%emt 0:00:00]} e6 {[%emt 0:00:40]} 2. d4 {[%emt 0:00:00]} d5 {[%emt 0:00:06]} 3. Nd2 {[%emt 0:00:00]} a6 {[%emt 0:00:07]} 4. Ngf3 {[%emt 0:01:14]} c5 {[%emt 0:00:38]} 5. exd5 {[%emt 0:01:15]} exd5 {[%emt 0:00:17]} 6. dxc5 {[%emt 0:00:53]} Bxc5 {[%emt 0:00:45]} 7. Nb3 {[%emt 0:01:00]} Bb6 {[%emt 0:00:45]} 8. Be2 {[%emt 0:02:23]} Nf6 {[%emt 0:01:29]} 9. O-O {[%emt 0:03:24]} h6 {[%emt 0:00:33]} 10. Nfd4 {[%emt 0:09:31]} O-O {[%emt 0:02:10]} 11. Bf4 {[%emt 0:04:19]} Nc6 {[%emt 0:01:01]} 12. c3 {[%emt 0:00:43]} Re8 {[%emt 0:01:13]} 13. Re1 {[%emt 0:01:57]} Ne4 {[%emt 0:02:59]} 14. f3 {[%emt 0:25:16]} Nc5 {[%emt 0:07:25]} 15. Kh1 {[%emt 0:09:27]} Ne6 {[%emt 0:03:03]} 16. Be3 {[%emt 0:05:56]} Nexd4 {[%emt 0:08:24]} 17. Bxd4 {[%emt 0:00:20]} Nxd4 {[%emt 0:00:07]} 18. Nxd4 {[%emt 0:00:05]} Qh4 {[%emt 0:05:28]} 19. Bd3 {[%emt 0:14:19]} Bd7 {[%emt 0:02:27]} 20. Rxe8+ {[%emt 0:09:22]} Rxe8 {[%emt 0:00:06]} 21. Qg1 {[%emt 0:00:54]} Re5 {[%emt 0:04:34]} 22. Rd1 {[%emt 0:01:25]} Rh5 {[%emt 0:02:37]} 23. g3 {[%emt 0:01:06]} Qf6 {[%emt 0:00:35]} 24. Be2 {[%emt 0:02:58]} Re5 {[%emt 0:04:16]} 25. Qf2 {[%emt 0:02:28]} g5 {[%emt 0:27:35]} 26. Kg2 {[%emt 0:00:58]} Kh8 {[%emt 0:02:56]} 27. Rd2 {[%emt 0:00:26]} h5 {[%emt 0:01:11]} 28. Kf1 {[%emt 0:01:36]} h4 {[%emt 0:02:22]} 29. Ke1 {[%emt 0:00:36]} Qg6 {[%emt 0:07:53]} 30. gxh4 {[%emt 0:00:35]} Qb1+ {[%emt 0:01:27]} 31. Rd1 {[%emt 0:00:02]} Qxb2 {[%emt 0:00:14]} 32. Kf1 {[%emt 0:00:47]} Bh3+ {[%emt 0:01:09]} 33. Kg1 {[%emt 0:00:39]} Rxe2 {[%emt 0:00:32]} 0-1

[Event "CZE-ch Open 2018"]
[Site "Ostrava"]
[Date "2018.05.02"]
[Round "5"]
[White "Kolar, Stanislav"]
[Black "Mladek, Richard"]
[Result "0-1"]
[ECO "E92"]
[WhiteElo "2091"]
[BlackElo "2136"]
[Annotator "NA RC"]
[PlyCount "112"]
[EventDate "2018.??.??"]
[EventCountry "CZE"]
[SourceTitle "playchess.com"]
[Source "ChessBase"]
[SourceQuality "1"]
[TimeControl "40/5400+30:900+30"]

1. c4 {[%emt 0:00:00]} Nf6 {[%emt 0:00:07]} 2. Nf3 {[%emt 0:00:00]} g6 {[%emt 0:00:10]} 3. Nc3 {[%emt 0:00:45]} Bg7 {[%emt 0:00:09]} 4. d4 {[%emt 0:00:21]} O-O {[%emt 0:00:11]} 5. e4 {[%emt 0:00:15]} d6 {[%emt 0:00:04]} 6. Be2 {[%emt 0:00:16]} e5 {[%emt 0:00:06]} 7. dxe5 {[%emt 0:00:12]} dxe5 {[%emt 0:00:11]} 8. Qxd8 {[%emt 0:00:27]} Rxd8 {[%emt 0:00:07]} 9. Bg5 {[%emt 0:00:06]} Re8 {[%emt 0:00:05]} 10. O-O-O {[%emt 0:00:56]} Na6 {[%emt 0:11:17]} 11. h3 {[%emt 0:14:06]} Nc5 {[%emt 0:07:11] E92: King's Indian: Classical: 6 Be2 e5: 7 dxe5, 7 Be3 and Petrosian System without 7...Nbd7} (11... c6 12. Be3 Bf8 13. Bd3 Nc5 14. Bc2 a5 15. Bg5 Bg7 16. Be3 Bf8 17. Bg5 Bg7 18. Be3 Bf8 19. Bg5 Kg7 20. Rd2 h6 21. Be3 Nh5 {½-½ (21) Corrales Jimenez,F (2507)-Hernandez Guerrero,G (2551) Aguascalientes 2007}) 12. Bd3 {[%emt 0:03:24]} Ne6 $146 {[%emt 0:09:28]} ({Predecessor:} 12... b6 13. Bc2 Bb7 14. Rhe1 Ne6 15. Be3 Nh5 16. g3 {½-½ (16) Buchaillot,L (2152)-Koo,O (2245) ICCF email 2015}) 13. Be3 {[%emt 0:01:23]} c6 {[%emt 0:06:59]} 14. Rhe1 {[%emt 0:05:38]} Nd7 {[%emt 0:01:45]} 15. Bf1 {[%emt 0:08:16]} f5 {[%emt 0:04:44]} 16. exf5 {[%emt 0:03:35]} gxf5 {[%emt 0:00:06]} 17. Ng5 {[%emt 0:00:55]} Ndc5 {[%emt 0:04:04]} 18. Nxe6 {[%emt 0:03:57]} Nxe6 {[%emt 0:00:06]} 19. g3 {[%emt 0:01:47]} Nf8 {[%emt 0:02:13]} 20. Kc2 {[%emt 0:05:56]} Be6 {[%emt 0:01:01]} 21. Rd6 {[%emt 0:02:40]} Ng6 {[%emt 0:00:43]} 22. c5 {[%emt 0:01:45]} Kh8 {[%emt 0:02:18]} 23. h4 {[%emt 0:02:14]} f4 {[%emt 0:03:34]} 24. gxf4 {[%emt 0:02:18]} exf4 {[%emt 0:00:24]} 25. Bd4 {[%emt 0:02:16]} Bf5+ {[%emt 0:01:08]} 26. Kd2 {[%emt 0:01:21]} Rxe1 {[%emt 0:11:33]} 27. Kxe1 {[%emt 0:00:02]} Re8+ {[%emt 0:00:14]} 28. Kd2 {[%emt 0:00:17]} Nxh4 {[%emt 0:00:52]} 29. Be2 {[%emt 0:00:15]} Ng6 {[%emt 0:06:44]} 30. Bh5 {[%emt 0:01:37]} Be5 {[%emt 0:02:06]} 31. Ne2 {[%emt 0:02:50]} Kg7 {[%emt 0:09:26]} 32. Nxf4 {[%emt 0:01:15]} Kh6 {[%emt 0:00:24]} 33. Bxe5 {[%emt 0:03:22]} Rxe5 {[%emt 0:00:11]} 34. Be2 {[%emt 0:05:25]} Rxc5 {[%emt 0:01:07]} 35. Bd3 {[%emt 0:03:01]} Bxd3 {[%emt 0:01:45]} 36. Kxd3 {[%emt 0:00:37]} Rf5 {[%emt 0:01:07]} 37. Nxg6 {[%emt 0:00:39]} hxg6 {[%emt 0:00:02]} 38. Ke3 {[%emt 0:00:39]} Re5+ {[%emt 0:01:42]} 39. Kd4 {[%emt 0:06:31]} Re2 {[%emt 0:00:34]} 40. Kc3 {[%emt 0:00:07]} Rxf2 {[%emt 0:17:38]} 41. Rd7 {[%emt 0:15:12]} g5 {[%emt 0:08:01]} 42. Rxb7 {[%emt 0:00:16]} g4 {[%emt 0:00:37]} 43. Rxa7 {[%emt 0:00:40]} g3 {[%emt 0:00:26]} 44. Ra8 {[%emt 0:00:34]} Rf6 {[%emt 0:00:00]} 45. Rh8+ {[%emt 0:00:00]} Kg5 {[%emt 0:00:00]} 46. Rh1 {[%emt 0:00:00]} Kg4 {[%emt 0:00:00]} 47. b4 {[%emt 0:00:00]} g2 {[%emt 0:00:00]} 48. Rg1 {[%emt 0:00:00]} Kg3 {[%emt 0:00:00]} 49. Kc4 {[%emt 0:00:00] [#]} Rf1 $1 {[%emt 0:00:00]} 50. Rxg2+ {[%emt 0:00:00]} Kxg2 {[%emt 0:00:00]} 51. a4 {[%emt 0:00:00]} Kf3 {[%emt 0:00:00]} 52. Kc5 {[%emt 0:00:00]} Rc1+ {[%emt 0:00:00]} 53. Kb6 {[%emt 0:00:00]} Ke4 {[%emt 0:00:39]} 54. a5 {[%emt 0:00:00]} Kd5 {[%emt 0:00:59]} 55. a6 {[%emt 0:00:00]} Ra1 {[%emt 0:01:17]} 56. a7 {[%emt 0:00:00]} Kc4 $11 {[%emt 0:00:09]} (56... Ra4 {mates} 57. b5 c5 58. Kb7 c4 59. a8=Q Rxa8 60. Kxa8 Kc5 61. Ka7 Kxb5 62. Kb7 c3 63. Kc7 c2 64. Kd6 Kc4 65. Ke6 c1=Q 66. Ke5 Qg5+ 67. Kd6 Qf6+ 68. Kc7 Kc5 69. Kd7 Qf7+ 70. Kd8 Kc6 71. Kc8 Qg8#) 0-1

[Event "CZE-ch Open 2018"]
[Site "Ostrava"]
[Date "2018.05.03"]
[Round "6"]
[White "Bures, Jaroslav"]
[Black "Mikes, Jan"]
[Result "0-1"]
[ECO "E97"]
[WhiteElo "2407"]
[BlackElo "2321"]
[Annotator "ChessBase"]
[PlyCount "68"]
[EventDate "2018.??.??"]
[EventCountry "CZE"]
[SourceTitle "playchess.com"]
[Source "ChessBase"]
[SourceQuality "1"]
[TimeControl "40/5400+30:900+30"]

1. d4 {[%emt 0:00:00]} Nf6 {[%emt 0:00:07]} 2. c4 {[%emt 0:00:00]} g6 {[%emt 0:00:05]} 3. Nc3 {[%emt 0:00:13]} Bg7 {[%emt 0:00:05]} 4. e4 {[%emt 0:00:28]} d6 {[%emt 0:00:04]} 5. Nf3 {[%emt 0:00:14]} O-O {[%emt 0:00:10]} 6. Be2 {[%emt 0:00:24]} e5 {[%emt 0:00:05]} 7. O-O {[%emt 0:00:22]} Nc6 {[%emt 0:00:05]} 8. d5 {[%emt 0:00:28]} Ne7 {[%emt 0:00:04]} 9. b4 {[%emt 0:00:10]} Ne8 {[%emt 0:02:31]} 10. c5 {[%emt 0:02:08]} f5 {[%emt 0:01:22]} 11. Nd2 {[%emt 0:02:25]} Nf6 {[%emt 0:00:09]} 12. a4 {[%emt 0:02:08]} f4 {[%emt 0:19:25]} 13. Nc4 {[%emt 0:01:32]} g5 {[%emt 0:00:40]} 14. Ba3 {[%emt 0:00:40]} g4 {[%emt 0:01:24]} 15. cxd6 {[%emt 0:00:05]} cxd6 {[%emt 0:00:03]} 16. b5 {[%emt 0:00:03]} f3 {[%emt 0:01:19]} 17. gxf3 {[%emt 0:00:06]} gxf3 {[%emt 0:00:04]} 18. Bxf3 {[%emt 0:00:07]} Ne8 {[%emt 0:00:07]} 19. Kh1 {[%emt 0:05:19]} Ng6 {[%emt 0:01:30]} 20. Ne3 {[%emt 0:24:17]} Qh4 {[%emt 0:03:22]} 21. Ra2 {[%emt 0:14:37]} Bh3 {[%emt 0:11:55]} 22. Bg2 {[%emt 0:05:56]} Rc8 {[%emt 0:02:08]} 23. Bxh3 {[%emt 0:00:49]} Qxh3 {[%emt 0:00:14]} 24. Nb1 {[%emt 0:11:45]} Rf4 {[%emt 0:30:57]} 25. f3 {[%emt 0:03:56]} Nf6 {[%emt 0:02:20]} 26. Ng2 {[%emt 0:03:48]} Nh5 {[%emt 0:07:58]} 27. Nxf4 {[%emt 0:04:48]} exf4 {[%emt 0:00:04]} 28. Kg1 {[%emt 0:01:30]} Nh4 {[%emt 0:01:07]} 29. Rff2 {[%emt 0:02:57]} Kf7 {[%emt 0:02:22]} 30. Rg2 {[%emt 0:09:45]} Bd4+ {[%emt 0:01:55]} 31. Kf1 {[%emt 0:02:57]} Rg8 {[%emt 0:00:18]} 32. Qc2 {[%emt 0:01:21]} Qxf3+ 33. Rf2 {[%emt 0:00:00]} Rg1+ {[%emt 0:01:30]} 34. Kxg1 {[%emt 0:00:00]} Qg2# {[%emt 0:00:36]} 0-1

[Event "CZE-ch Open 2018"]
[Site "Ostrava"]
[Date "2018.05.03"]
[Round "6"]
[White "Vokac, Marek"]
[Black "Nedela, Vlastimil"]
[Result "1/2-1/2"]
[ECO "D43"]
[WhiteElo "2390"]
[BlackElo "2307"]
[Annotator "NA"]
[PlyCount "40"]
[EventDate "2018.??.??"]
[EventCountry "CZE"]
[SourceTitle "playchess.com"]
[Source "ChessBase"]
[SourceQuality "1"]
[TimeControl "40/5400+30:900+30"]

1. d4 {[%emt 0:03:06]} Nf6 {[%emt 0:00:20]} 2. c4 {[%emt 0:00:04]} e6 {[%emt 0:00:19]} 3. Nf3 {[%emt 0:00:06]} d5 {[%emt 0:02:02]} 4. Nc3 {[%emt 0:00:11]} c6 {[%emt 0:00:55]} 5. Bg5 $11 {[%emt 0:00:36]} Nbd7 {[%emt 0:00:34]} 6. Qc2 {[%emt 0:00:25]} Be7 {[%emt 0:01:33]} 7. e3 {[%emt 0:00:32]} O-O {[%emt 0:00:41]} 8. O-O-O {[%emt 0:00:16]} b6 {[%emt 0:13:45]} 9. Kb1 {[%emt 0:16:27]} Bb7 {[%emt 0:09:35]} 10. h4 {[%emt 0:03:36]} Rc8 {[%emt 0:09:57]} 11. cxd5 {[%emt 0:05:44]} cxd5 {[%emt 0:06:43]} 12. Bd3 {[%emt 0:02:49]} Ne4 {[%emt 0:01:57]} 13. Bxe4 {[%emt 0:12:48]} dxe4 {[%emt 0:00:06]} 14. Nd2 {[%emt 0:00:09]} Bxg5 {[%emt 0:17:07]} 15. hxg5 {[%emt 0:00:35]} Qxg5 {[%emt 0:00:04]} 16. Ndxe4 {[%emt 0:01:28]} Bxe4 {[%emt 0:00:40]} 17. Qxe4 {[%emt 0:00:11]} Nf6 {[%emt 0:00:36]} 18. Qf3 {[%emt 0:21:49]} Qg4 {[%emt 0:01:23]} 19. Qxg4 {[%emt 0:02:30]} Nxg4 {[%emt 0:00:02]} 20. Rd2 {[%emt 0:00:08]} f5 {[%emt 0:01:45]} 1/2-1/2

[Event "CZE-ch Open 2018"]
[Site "Ostrava"]
[Date "2018.05.03"]
[Round "6"]
[White "Jasny, Stanislav"]
[Black "Jurek, Josef"]
[Result "1-0"]
[ECO "C01"]
[WhiteElo "2379"]
[BlackElo "2264"]
[Annotator "NA"]
[PlyCount "103"]
[EventDate "2018.??.??"]
[EventCountry "CZE"]
[SourceTitle "playchess.com"]
[Source "ChessBase"]
[SourceQuality "1"]
[TimeControl "40/5400+30:900+30"]

1. e4 {[%emt 0:00:00]} e6 {[%emt 0:00:16]} 2. d4 {[%emt 0:00:00]} d5 {[%emt 0:00:13]} 3. exd5 {[%emt 0:00:09]} exd5 {[%emt 0:00:25]} 4. c4 {[%emt 0:00:07]} Nf6 {[%emt 0:01:12]} 5. Nc3 {[%emt 0:00:06]} Be7 {[%emt 0:06:36]} 6. Nf3 {[%emt 0:03:36]} O-O {[%emt 0:01:19]} 7. cxd5 {[%emt 0:00:31]} Nxd5 {[%emt 0:07:42]} 8. Bd3 {[%emt 0:00:25]} Be6 {[%emt 0:05:31] C01: French: Exchange Variation} 9. O-O {[%emt 0:02:27]} Nd7 {[%emt 0:03:10]} 10. Re1 {[%emt 0:00:33]} c6 {[%emt 0:02:56]} 11. a3 {[%emt 0:00:27]} Re8 {[%emt 0:04:22]} 12. h3 {[%emt 0:01:00]} (12. Qc2 Nf8 13. Ne4 Bf5 14. Bg5 Ne6 15. Bxe7 Rxe7 16. Nc5 Bxd3 17. Qxd3 {0-1 (57) Fiebig,T (2424)-Naiditsch,A (2684) Germany 2016}) 12... Nf8 {[%emt 0:02:42]} 13. Ne4 {[%emt 0:14:11]} Qc7 $146 {[%emt 0:02:24]} ({Predecessor:} 13... Ng6 14. Neg5 Bxg5 15. Nxg5 {1-0 (31) Okhotnik,V (2446)-Krivoshey,S (2449) Graz 2001}) 14. Neg5 {[%emt 0:14:52]} Bd6 {[%emt 0:16:44]} 15. Nxe6 {[%emt 0:07:33]} Rxe6 {[%emt 0:04:14]} 16. Rxe6 {[%emt 0:01:08]} Nxe6 {[%emt 0:01:05]} 17. Ng5 {[%emt 0:01:07]} Nxg5 {[%emt 0:01:44]} 18. Bxg5 {[%emt 0:03:14]} Re8 {[%emt 0:04:04]} 19. Qg4 {[%emt 0:06:10]} g6 {[%emt 0:01:30]} 20. Bc4 {[%emt 0:02:14]} Bf8 {[%emt 0:06:16]} 21. Bxd5 {[%emt 0:06:53]} cxd5 {[%emt 0:00:26]} 22. Rc1 {[%emt 0:00:30]} Qd6 {[%emt 0:04:21]} 23. Bf4 {[%emt 0:00:25]} Qe6 {[%emt 0:03:00]} 24. Qxe6 {[%emt 0:00:31]} fxe6 {[%emt 0:02:04]} 25. Rc7 {[%emt 0:09:05]} Re7 {[%emt 0:05:48]} 26. Rc8 {[%emt 0:00:17]} Kg7 {[%emt 0:00:11]} 27. Be5+ {[%emt 0:01:00]} Kg8 {[%emt 0:00:10]} 28. Bd6 {[%emt 0:00:22]} Rf7 {[%emt 0:00:08]} 29. Re8 {[%emt 0:05:52]} b6 {[%emt 0:00:06]} 30. g3 {[%emt 0:01:07]} Kg7 {[%emt 0:05:57]} 31. Bxf8+ {[%emt 0:00:07]} Rxf8 {[%emt 0:00:14]} 32. Rxe6 {[%emt 0:00:04]} Rc8 {[%emt 0:03:17]} 33. Rd6 {[%emt 0:05:44]} Rc2 {[%emt 0:01:33]} 34. Rxd5 {[%emt 0:00:09]} Rxb2 {[%emt 0:00:23]} 35. Rd7+ {[%emt 0:00:11]} Kf6 {[%emt 0:00:08]} 36. Rxa7 {[%emt 0:00:09]} ({Much less strong is} 36. Rxh7 a5) 36... h5 {[%emt 0:00:16]} 37. h4 {[%emt 0:01:10]} Rb3 {[%emt 0:00:39]} 38. Kg2 {[%emt 0:02:17]} Kf5 {[%emt 0:01:29]} 39. Rf7+ {[%emt 0:00:20]} Ke4 {[%emt 0:00:35]} 40. Rf4+ {[%emt 0:02:12]} Kd5 {[%emt 0:15:09]} 41. a4 {[%emt 0:16:51]} Rb4 {[%emt 0:02:17]} 42. Rf6 {[%emt 0:01:51]} Kxd4 {[%emt 0:00:06]} 43. Rxg6 {[%emt 0:01:10]} Kc3 {[%emt 0:02:05]} 44. Rh6 {[%emt 0:00:39]} Kb3 {[%emt 0:00:21]} 45. Rxh5 {[%emt 0:00:33]} Kxa4 {[%emt 0:00:14]} 46. Rh8 {[%emt 0:01:30]} Rc4 {[%emt 0:01:36]} 47. Ra8+ {[%emt 0:00:11]} Kb3 {[%emt 0:01:23]} 48. Rb8 {[%emt 0:00:07]} Rc6 {[%emt 0:00:06]} 49. h5 {[%emt 0:00:46]} Kc4 {[%emt 0:00:06]} 50. g4 {[%emt 0:00:17]} b5 $18 {[%emt 0:00:05]} 51. g5 {[%emt 0:00:40]} Rc5 {[%emt 0:00:17]} 52. f4 {[%emt 0:00:12]} 1-0